[Event "January 9 Late 2024"]
[Site "https://www.chess.com"]
[Date "2024.01.09"]
[Round "9"]
[White "Niekras, Dawid"]
[Black "Martinez Pla, Xavier"]
[Result "1-0"]
[Board "51"]
[TimeControl "180+1"]
[WhiteFideId "1160451"]
[BlackFideId "32074271"]
[WhiteElo "2698"]
[BlackElo "2522"]
[WhiteTeam "POL"]
[BlackTeam "ESP"]
[WhiteClock "0:00:04"]
[BlackClock "0:00:12"]

1. e4 {[%clk 0:03:00]}  c5 {[%clk 0:02:59]} 2. Nc3 {[%clk 0:03:00]}  Nc6 {[%clk 0:02:59]} 3. Bb5 {[%clk 0:03:00]}  Nd4 {[%clk 0:02:58]} 4. Bc4 {[%clk 0:03:01]}  Nf6 {[%clk 0:02:57]} 5. Nge2 {[%clk 0:03:00]}  e6 {[%clk 0:02:57]} 6. O-O {[%clk 0:02:59]}  a6 {[%clk 0:02:55]} 7. a4 {[%clk 0:02:59]}  Qc7 {[%clk 0:02:45]} 8. d3 {[%clk 0:02:35]}  Nc6 {[%clk 0:02:44]} 9. Bf4 {[%clk 0:02:18]}  d6 {[%clk 0:02:42]} 10. Bg3 {[%clk 0:01:25]}  Be7 {[%clk 0:02:40]} 11. f4 {[%clk 0:01:24]}  h5 {[%clk 0:02:39]} 12. h3 {[%clk 0:01:16]}  Bd7 {[%clk 0:02:37]} 13. Qe1 {[%clk 0:00:59]}  Rg8 {[%clk 0:02:34]} 14. Bh4 {[%clk 0:00:58]}  O-O-O {[%clk 0:02:17]} 15. Kh1 {[%clk 0:00:34]}  Rde8 {[%clk 0:01:56]} 16. Qf2 {[%clk 0:00:33]}  Rh8 {[%clk 0:01:45]} 17. Qg3 {[%clk 0:00:26]}  Rhg8 {[%clk 0:01:41]} 18. Qf3 {[%clk 0:00:22]}  Kb8 {[%clk 0:01:27]} 19. Bg5 {[%clk 0:00:21]}  Nh7 {[%clk 0:01:23]} 20. Bxe7 {[%clk 0:00:20]}  Rxe7 {[%clk 0:01:24]} 21. Qxh5 {[%clk 0:00:20]}  Nf6 {[%clk 0:01:24]} 22. Qg5 {[%clk 0:00:17]}  Ree8 {[%clk 0:01:21]} 23. a5 {[%clk 0:00:13]}  Qd8 {[%clk 0:01:21]} 24. e5 {[%clk 0:00:11]}  dxe5 {[%clk 0:01:09]} 25. fxe5 {[%clk 0:00:12]}  Nh7 {[%clk 0:01:08]} 26. Qxd8+ {[%clk 0:00:13]}  Nxd8 {[%clk 0:01:08]} 27. Ne4 {[%clk 0:00:13]}  Nc6 {[%clk 0:01:06]} 28. Nxc5 {[%clk 0:00:11]}  Nxe5 {[%clk 0:01:06]} 29. Nxd7+ {[%clk 0:00:11]}  Nxd7 {[%clk 0:01:06]} 30. Rxf7 {[%clk 0:00:12]}  Nhf6 {[%clk 0:01:04]} 31. d4 {[%clk 0:00:12]}  Rc8 {[%clk 0:00:56]} 32. b3 {[%clk 0:00:11]}  Rge8 {[%clk 0:00:53]} 33. Rxg7 {[%clk 0:00:08]}  e5 {[%clk 0:00:54]} 34. Rd1 {[%clk 0:00:07]}  Ne4 {[%clk 0:00:52]} 35. Rf1 {[%clk 0:00:04]}  Ndf6 {[%clk 0:00:51]} 36. dxe5 {[%clk 0:00:04]}  Rxe5 {[%clk 0:00:50]} 37. Rf7 {[%clk 0:00:05]}  Nh5 {[%clk 0:00:47]} 38. Kh2 {[%clk 0:00:04]}  Nd6 {[%clk 0:00:46]} 39. Bd3 {[%clk 0:00:04]}  Nxf7 {[%clk 0:00:45]} 40. Rxf7 {[%clk 0:00:03]}  Rd8 {[%clk 0:00:44]} 41. Ng3 {[%clk 0:00:03]}  Nxg3 {[%clk 0:00:40]} 42. Kxg3 {[%clk 0:00:04]}  Rg5+ {[%clk 0:00:40]} 43. Kh2 {[%clk 0:00:04]}  Rxa5 {[%clk 0:00:38]} 44. h4 {[%clk 0:00:04]}  Rad5 {[%clk 0:00:34]} 45. Kh3 {[%clk 0:00:03]}  b5 {[%clk 0:00:33]} 46. g4 {[%clk 0:00:02]}  a5 {[%clk 0:00:34]} 47. h5 {[%clk 0:00:02]}  a4 {[%clk 0:00:34]} 48. bxa4 {[%clk 0:00:02]}  bxa4 {[%clk 0:00:35]} 49. h6 {[%clk 0:00:02]}  Rh8 {[%clk 0:00:35]} 50. h7 {[%clk 0:00:01]}  a3 {[%clk 0:00:34]} 51. Kh4 {[%clk 0:00:01]}  a2 {[%clk 0:00:34]} 52. Rf1 {[%clk 0:00:02]}  Ra5 {[%clk 0:00:28]} 53. Ra1 {[%clk 0:00:02]}  Kc7 {[%clk 0:00:28]} 54. g5 {[%clk 0:00:03]}  Rb8 {[%clk 0:00:24]} 55. Kh5 {[%clk 0:00:03]}  Rb1 {[%clk 0:00:16]} 56. h8=Q {[%clk 0:00:03]}  Rxa1 {[%clk 0:00:16]} 57. Qxa1 {[%clk 0:00:04]}  Kd6 {[%clk 0:00:12]} 58. Kh6 {[%clk 0:00:04]} 1-0

[Event "January 9 Late 2024"]
[Site "https://www.chess.com"]
[Date "2024.01.09"]
[Round "9"]
[White "Sun, Rick"]
[Black "Novikov, Evgenij"]
[Result "1/2-1/2"]
[Board "55"]
[TimeControl "180+1"]
[WhiteFideId "30909481"]
[BlackFideId "4125380"]
[WhiteElo "2653"]
[BlackElo "2504"]
[WhiteTeam "USA"]
[BlackTeam "RUS"]
[WhiteClock "0:00:28"]
[BlackClock "0:00:12"]

1. d4 {[%clk 0:03:00]}  d5 {[%clk 0:02:59]} 2. Nc3 {[%clk 0:03:01]}  Nf6 {[%clk 0:02:58]} 3. Bf4 {[%clk 0:03:01]}  a6 {[%clk 0:02:56]} 4. e3 {[%clk 0:03:01]}  e6 {[%clk 0:02:54]} 5. Nf3 {[%clk 0:03:02]}  c5 {[%clk 0:02:54]} 6. Bd3 {[%clk 0:02:59]}  Nc6 {[%clk 0:02:50]} 7. O-O {[%clk 0:02:59]}  Bd6 {[%clk 0:02:49]} 8. dxc5 {[%clk 0:02:59]}  Bxc5 {[%clk 0:02:46]} 9. e4 {[%clk 0:02:58]}  d4 {[%clk 0:02:37]} 10. e5 {[%clk 0:02:58]}  dxc3 {[%clk 0:02:25]} 11. exf6 {[%clk 0:02:55]}  gxf6 {[%clk 0:02:15]} 12. bxc3 {[%clk 0:02:55]}  e5 {[%clk 0:02:08]} 13. Bg3 {[%clk 0:02:51]}  Bg4 {[%clk 0:02:03]} 14. Qe2 {[%clk 0:02:45]}  Qa5 {[%clk 0:01:47]} 15. Rab1 {[%clk 0:02:37]}  O-O-O {[%clk 0:01:26]} 16. Rb3 {[%clk 0:02:16]}  Rhe8 {[%clk 0:01:23]} 17. Be4 {[%clk 0:01:22]}  Qc7 {[%clk 0:01:08]} 18. Rfb1 {[%clk 0:01:14]}  Na5 {[%clk 0:01:08]} 19. Bxb7+ {[%clk 0:00:46]}  Nxb7 {[%clk 0:01:08]} 20. Qxa6 {[%clk 0:00:45]}  Rd6 {[%clk 0:01:08]} 21. Qa8+ {[%clk 0:00:37]}  Kd7 {[%clk 0:01:08]} 22. Qa4+ {[%clk 0:00:37]}  Kd8 {[%clk 0:01:02]} 23. h3 {[%clk 0:00:20]}  Bxf3 {[%clk 0:01:02]} 24. gxf3 {[%clk 0:00:21]}  Rb6 {[%clk 0:01:01]} 25. Rxb6 {[%clk 0:00:18]}  Bxb6 {[%clk 0:01:01]} 26. Qb5 {[%clk 0:00:18]}  Re6 {[%clk 0:01:00]} 27. a4 {[%clk 0:00:12]}  Qc5 {[%clk 0:00:56]} 28. Qa6 {[%clk 0:00:10]}  Kc7 {[%clk 0:00:53]} 29. Rb4 {[%clk 0:00:08]}  Rc6 {[%clk 0:00:50]} 30. Qd3 {[%clk 0:00:05]}  Qxc3 {[%clk 0:00:43]} 31. Qe4 {[%clk 0:00:02]}  Qxc2 {[%clk 0:00:38]} 32. Qh4 {[%clk 0:00:02]}  Qd1+ {[%clk 0:00:31]} 33. Kg2 {[%clk 0:00:02]}  Rc1 {[%clk 0:00:30]} 34. Rc4+ {[%clk 0:00:02]}  Kb8 {[%clk 0:00:29]} 35. Rxc1 {[%clk 0:00:01]}  Qxc1 {[%clk 0:00:30]} 36. Qxf6 {[%clk 0:00:02]}  Bc7 {[%clk 0:00:25]} 37. Bxe5 {[%clk 0:00:01]}  Qc4 {[%clk 0:00:18]} 38. Bxc7+ {[%clk 0:00:01]}  Kxc7 {[%clk 0:00:19]} 39. Qg7 {[%clk 0:00:01]}  Nd6 {[%clk 0:00:16]} 40. Qxh7 {[%clk 0:00:02]}  Qxa4 {[%clk 0:00:16]} 41. Qg7 {[%clk 0:00:02]}  Qf4 {[%clk 0:00:14]} 42. Qc3+ {[%clk 0:00:03]}  Kd7 {[%clk 0:00:13]} 43. Qg7 {[%clk 0:00:02]}  Ke7 {[%clk 0:00:12]} 44. Qg4 {[%clk 0:00:03]}  Qf6 {[%clk 0:00:07]} 45. h4 {[%clk 0:00:03]}  Nf5 {[%clk 0:00:07]} 46. Kh3 {[%clk 0:00:03]}  Kf8 {[%clk 0:00:06]} 47. Qg5 {[%clk 0:00:03]}  Qe6 {[%clk 0:00:06]} 48. Qg4 {[%clk 0:00:04]}  Ng7 {[%clk 0:00:03]} 49. Kg3 {[%clk 0:00:03]}  Qe5+ {[%clk 0:00:03]} 50. Kh3 {[%clk 0:00:03]}  Qf5 {[%clk 0:00:03]} 51. Kg3 {[%clk 0:00:03]}  Qf6 {[%clk 0:00:03]} 52. Kg2 {[%clk 0:00:03]}  Kg8 {[%clk 0:00:03]} 53. Qc8+ {[%clk 0:00:04]}  Kh7 {[%clk 0:00:03]} 54. Qc2+ {[%clk 0:00:04]}  Kh6 {[%clk 0:00:03]} 55. Qe4 {[%clk 0:00:05]}  Nh5 {[%clk 0:00:02]} 56. Qg4 {[%clk 0:00:05]}  Nf4+ {[%clk 0:00:02]} 57. Kg3 {[%clk 0:00:05]}  Ng6 {[%clk 0:00:03]} 58. h5 {[%clk 0:00:06]}  Ne5 {[%clk 0:00:02]} 59. Qf4+ {[%clk 0:00:05]}  Kg7 {[%clk 0:00:01]} 60. h6+ {[%clk 0:00:05]}  Qxh6 {[%clk 0:00:01]} 61. Qxe5+ {[%clk 0:00:05]}  f6 {[%clk 0:00:01]} 62. Qe7+ {[%clk 0:00:05]}  Kg6 {[%clk 0:00:02]} 63. Qe8+ {[%clk 0:00:06]}  Kg7 {[%clk 0:00:02]} 64. Qd7+ {[%clk 0:00:06]}  Kg6 {[%clk 0:00:03]} 65. Qg4+ {[%clk 0:00:07]}  Kf7 {[%clk 0:00:03]} 66. Kg2 {[%clk 0:00:07]}  Qh7 {[%clk 0:00:02]} 67. Kg3 {[%clk 0:00:08]}  Qh6 {[%clk 0:00:03]} 68. f4 {[%clk 0:00:08]}  Qh7 {[%clk 0:00:03]} 69. f5 {[%clk 0:00:08]}  Qh6 {[%clk 0:00:03]} 70. Kf3 {[%clk 0:00:08]}  Qh1+ {[%clk 0:00:02]} 71. Kg3 {[%clk 0:00:08]}  Qg1+ {[%clk 0:00:02]} 72. Kh3 {[%clk 0:00:08]}  Qh1+ {[%clk 0:00:02]} 73. Kg3 {[%clk 0:00:09]}  Qg1+ {[%clk 0:00:03]} 74. Kf3 {[%clk 0:00:09]}  Qd1+ {[%clk 0:00:03]} 75. Kf4 {[%clk 0:00:10]}  Qd4+ {[%clk 0:00:03]} 76. Kg3 {[%clk 0:00:10]}  Qd3+ {[%clk 0:00:03]} 77. f3 {[%clk 0:00:10]}  Qd1 {[%clk 0:00:02]} 78. Qc4+ {[%clk 0:00:10]}  Kg7 {[%clk 0:00:02]} 79. Qg4+ {[%clk 0:00:10]}  Kh8 {[%clk 0:00:02]} 80. Qh5+ {[%clk 0:00:10]}  Kg8 {[%clk 0:00:02]} 81. Qg6+ {[%clk 0:00:11]}  Kh8 {[%clk 0:00:02]} 82. Qxf6+ {[%clk 0:00:12]}  Kg8 {[%clk 0:00:02]} 83. Qg6+ {[%clk 0:00:12]}  Kh8 {[%clk 0:00:03]} 84. Qh6+ {[%clk 0:00:13]}  Kg8 {[%clk 0:00:02]} 85. Qh2 {[%clk 0:00:13]}  Qd6+ {[%clk 0:00:02]} 86. Kh3 {[%clk 0:00:13]}  Qh6+ {[%clk 0:00:02]} 87. Kg2 {[%clk 0:00:13]}  Qd2+ {[%clk 0:00:02]} 88. Kh1 {[%clk 0:00:13]}  Qd1+ {[%clk 0:00:02]} 89. Qg1+ {[%clk 0:00:14]}  Qxg1+ {[%clk 0:00:02]} 90. Kxg1 {[%clk 0:00:14]}  Kf7 {[%clk 0:00:02]} 91. Kg2 {[%clk 0:00:14]}  Kf6 {[%clk 0:00:03]} 92. Kg3 {[%clk 0:00:12]}  Kxf5 {[%clk 0:00:04]} 93. f4 {[%clk 0:00:12]}  Kf6 {[%clk 0:00:04]} 94. Kg4 {[%clk 0:00:13]}  Kg6 {[%clk 0:00:05]} 95. Kh4 {[%clk 0:00:14]}  Kf5 {[%clk 0:00:05]} 96. Kg3 {[%clk 0:00:14]}  Kf6 {[%clk 0:00:05]} 97. Kf3 {[%clk 0:00:15]}  Kf5 {[%clk 0:00:05]} 98. Ke3 {[%clk 0:00:16]}  Kf6 {[%clk 0:00:06]} 99. Ke4 {[%clk 0:00:17]}  Ke6 {[%clk 0:00:06]} 100. f5+ {[%clk 0:00:17]}  Kf6 {[%clk 0:00:07]} 101. Kf4 {[%clk 0:00:18]}  Kf7 {[%clk 0:00:08]} 102. Kg5 {[%clk 0:00:19]}  Kg7 {[%clk 0:00:08]} 103. Kf4 {[%clk 0:00:19]}  Kf6 {[%clk 0:00:09]} 104. Ke4 {[%clk 0:00:20]}  Kf7 {[%clk 0:00:09]} 105. Ke5 {[%clk 0:00:21]}  Ke7 {[%clk 0:00:09]} 106. f6+ {[%clk 0:00:22]}  Kf7 {[%clk 0:00:09]} 107. Kf5 {[%clk 0:00:22]}  Kf8 {[%clk 0:00:10]} 108. Kg6 {[%clk 0:00:23]}  Kg8 {[%clk 0:00:10]} 109. Kg5 {[%clk 0:00:24]}  Kf7 {[%clk 0:00:10]} 110. Kf5 {[%clk 0:00:25]}  Kf8 {[%clk 0:00:11]} 111. Ke6 {[%clk 0:00:26]}  Ke8 {[%clk 0:00:11]} 112. f7+ {[%clk 0:00:27]}  Kf8 {[%clk 0:00:12]} 113. Kf6 {[%clk 0:00:28]} 1/2-1/2

[Event "January 9 Late 2024"]
[Site "https://www.chess.com"]
[Date "2024.01.09"]
[Round "9"]
[White "Pinheiro, Iung Alicio de O."]
[Black "Joie, Sebastien"]
[Result "1/2-1/2"]
[Board "58"]
[TimeControl "180+1"]
[WhiteFideId "2104350"]
[BlackFideId "650420"]
[WhiteElo "2616"]
[BlackElo "2467"]
[WhiteTeam "BRA"]
[BlackTeam "FRA"]
[WhiteClock "0:00:14"]
[BlackClock "0:00:11"]

1. d4 {[%clk 0:03:00]}  d5 {[%clk 0:02:57]} 2. Nf3 {[%clk 0:03:00]}  Nf6 {[%clk 0:02:56]} 3. e3 {[%clk 0:03:00]}  Bf5 {[%clk 0:02:52]} 4. c4 {[%clk 0:02:58]}  c6 {[%clk 0:02:46]} 5. Nc3 {[%clk 0:02:58]}  e6 {[%clk 0:02:45]} 6. Nh4 {[%clk 0:02:58]}  Bg6 {[%clk 0:02:44]} 7. Qb3 {[%clk 0:02:57]}  Qc7 {[%clk 0:02:21]} 8. Nxg6 {[%clk 0:02:26]}  hxg6 {[%clk 0:02:21]} 9. g3 {[%clk 0:02:23]}  Nbd7 {[%clk 0:02:17]} 10. Bd2 {[%clk 0:02:21]}  Ng4 {[%clk 0:01:51]} 11. h3 {[%clk 0:02:12]}  Bd6 {[%clk 0:01:43]} 12. Bg2 {[%clk 0:01:59]}  Ngf6 {[%clk 0:01:20]} 13. O-O-O {[%clk 0:01:39]}  a5 {[%clk 0:01:03]} 14. cxd5 {[%clk 0:01:23]}  Nxd5 {[%clk 0:00:37]} 15. Kb1 {[%clk 0:01:10]}  b5 {[%clk 0:00:24]} 16. Ne4 {[%clk 0:00:54]}  Be7 {[%clk 0:00:13]} 17. Rc1 {[%clk 0:00:50]}  b4 {[%clk 0:00:10]} 18. Qa4 {[%clk 0:00:44]}  Rc8 {[%clk 0:00:05]} 19. Qd1 {[%clk 0:00:36]}  N7b6 {[%clk 0:00:03]} 20. Nc5 {[%clk 0:00:35]}  a4 {[%clk 0:00:04]} 21. Nxa4 {[%clk 0:00:32]}  Ra8 {[%clk 0:00:04]} 22. Nxb6 {[%clk 0:00:20]}  Qxb6 {[%clk 0:00:05]} 23. e4 {[%clk 0:00:21]}  Nc3+ {[%clk 0:00:03]} 24. Bxc3 {[%clk 0:00:20]}  bxc3 {[%clk 0:00:02]} 25. Rxc3 {[%clk 0:00:21]}  O-O {[%clk 0:00:02]} 26. Qc2 {[%clk 0:00:19]}  Qxd4 {[%clk 0:00:02]} 27. Rd1 {[%clk 0:00:19]}  Qb4 {[%clk 0:00:01]} 28. Rc4 {[%clk 0:00:18]}  Qb7 {[%clk 0:00:01]} 29. e5 {[%clk 0:00:17]}  Rab8 {[%clk 0:00:01]} 30. Bxc6 {[%clk 0:00:16]}  Qb6 {[%clk 0:00:01]} 31. Be4 {[%clk 0:00:15]}  Qa5 {[%clk 0:00:02]} 32. h4 {[%clk 0:00:15]}  Qxe5 {[%clk 0:00:02]} 33. f4 {[%clk 0:00:14]}  Qb5 {[%clk 0:00:02]} 34. g4 {[%clk 0:00:14]}  Bf6 {[%clk 0:00:03]} 35. Rd2 {[%clk 0:00:13]}  Rfd8 {[%clk 0:00:03]} 36. a4 {[%clk 0:00:13]}  Qa5 {[%clk 0:00:02]} 37. Rxd8+ {[%clk 0:00:13]}  Rxd8 {[%clk 0:00:03]} 38. g5 {[%clk 0:00:13]}  Be7 {[%clk 0:00:03]} 39. h5 {[%clk 0:00:13]}  gxh5 {[%clk 0:00:02]} 40. g6 {[%clk 0:00:13]}  fxg6 {[%clk 0:00:02]} 41. Bxg6 {[%clk 0:00:13]}  e5 {[%clk 0:00:02]} 42. Rc7 {[%clk 0:00:11]}  Bf6 {[%clk 0:00:02]} 43. Qc4+ {[%clk 0:00:11]}  Kh8 {[%clk 0:00:02]} 44. fxe5 {[%clk 0:00:12]}  Qxe5 {[%clk 0:00:03]} 45. Qc2 {[%clk 0:00:11]}  Rd1+ {[%clk 0:00:03]} 46. Ka2 {[%clk 0:00:11]}  Qd5+ {[%clk 0:00:03]} 47. Qc4 {[%clk 0:00:10]}  Qxc4+ {[%clk 0:00:02]} 48. Rxc4 {[%clk 0:00:11]}  Rd2 {[%clk 0:00:02]} 49. Rc8+ {[%clk 0:00:11]}  Rd8 {[%clk 0:00:03]} 50. Rxd8+ {[%clk 0:00:12]}  Bxd8 {[%clk 0:00:04]} 51. Bxh5 {[%clk 0:00:12]}  Ba5 {[%clk 0:00:04]} 52. Ka3 {[%clk 0:00:12]}  Kh7 {[%clk 0:00:03]} 53. b4 {[%clk 0:00:12]}  Bc7 {[%clk 0:00:04]} 54. a5 {[%clk 0:00:12]}  Kh6 {[%clk 0:00:04]} 55. Be8 {[%clk 0:00:11]}  Kg5 {[%clk 0:00:04]} 56. Ka4 {[%clk 0:00:12]}  Kf6 {[%clk 0:00:04]} 57. b5 {[%clk 0:00:13]}  Ke7 {[%clk 0:00:05]} 58. Bh5 {[%clk 0:00:11]}  Kd6 {[%clk 0:00:05]} 59. Bf3 {[%clk 0:00:10]}  Kc5 {[%clk 0:00:04]} 60. Bc6 {[%clk 0:00:09]}  g5 {[%clk 0:00:04]} 61. Bg2 {[%clk 0:00:09]}  Bd8 {[%clk 0:00:05]} 62. Bh1 {[%clk 0:00:07]}  g4 {[%clk 0:00:05]} 63. Bg2 {[%clk 0:00:07]}  g3 {[%clk 0:00:05]} 64. Bf3 {[%clk 0:00:07]}  Bc7 {[%clk 0:00:06]} 65. Bh1 {[%clk 0:00:08]}  Bd8 {[%clk 0:00:06]} 66. Bg2 {[%clk 0:00:08]}  Bc7 {[%clk 0:00:07]} 67. b6 {[%clk 0:00:08]}  Bxb6 {[%clk 0:00:07]} 68. axb6 {[%clk 0:00:09]}  Kxb6 {[%clk 0:00:08]} 69. Kb4 {[%clk 0:00:10]}  Kc7 {[%clk 0:00:08]} 70. Kc4 {[%clk 0:00:11]}  Kd6 {[%clk 0:00:09]} 71. Kd4 {[%clk 0:00:12]}  Ke7 {[%clk 0:00:09]} 72. Ke4 {[%clk 0:00:12]}  Ke6 {[%clk 0:00:10]} 73. Kf4 {[%clk 0:00:13]}  Kd6 {[%clk 0:00:11]} 74. Kxg3 {[%clk 0:00:14]} 1/2-1/2

[Event "January 9 Late 2024"]
[Site "https://www.chess.com"]
[Date "2024.01.09"]
[Round "9"]
[White "Baltag, Iulian"]
[Black "Luukkonen, Tommi"]
[Result "1-0"]
[Board "59"]
[TimeControl "180+1"]
[WhiteFideId "13901419"]
[BlackFideId "501808"]
[WhiteElo "2611"]
[BlackElo "2412"]
[WhiteTeam "MDA"]
[BlackTeam "FIN"]
[WhiteClock "0:00:42"]
[BlackClock "0:00:41"]

1. d4 {[%clk 0:03:00]}  Nf6 {[%clk 0:02:58]} 2. c4 {[%clk 0:02:55]}  g6 {[%clk 0:02:57]} 3. h4 {[%clk 0:02:55]}  h5 {[%clk 0:02:56]} 4. Nc3 {[%clk 0:02:50]}  Bg7 {[%clk 0:02:56]} 5. e4 {[%clk 0:02:49]}  d6 {[%clk 0:02:56]} 6. Be2 {[%clk 0:02:45]}  Nc6 {[%clk 0:02:50]} 7. d5 {[%clk 0:02:41]}  Ne5 {[%clk 0:02:50]} 8. Nh3 {[%clk 0:02:41]}  c6 {[%clk 0:02:48]} 9. Ng5 {[%clk 0:02:41]}  O-O {[%clk 0:02:43]} 10. O-O {[%clk 0:02:34]}  a6 {[%clk 0:02:38]} 11. Bf4 {[%clk 0:02:28]}  cxd5 {[%clk 0:02:34]} 12. exd5 {[%clk 0:02:24]}  Nh7 {[%clk 0:02:30]} 13. Rc1 {[%clk 0:02:15]}  Bf5 {[%clk 0:02:25]} 14. b3 {[%clk 0:02:08]}  Nxg5 {[%clk 0:02:19]} 15. Bxg5 {[%clk 0:02:08]}  Re8 {[%clk 0:02:14]} 16. Qd2 {[%clk 0:02:03]}  Qa5 {[%clk 0:02:13]} 17. Nb1 {[%clk 0:01:38]}  Qc7 {[%clk 0:02:08]} 18. a4 {[%clk 0:01:36]}  Qd7 {[%clk 0:02:06]} 19. Nc3 {[%clk 0:01:32]}  e6 {[%clk 0:02:05]} 20. Rfd1 {[%clk 0:01:29]}  exd5 {[%clk 0:01:49]} 21. Nxd5 {[%clk 0:01:29]}  Rab8 {[%clk 0:01:39]} 22. Nf6+ {[%clk 0:01:22]}  Bxf6 {[%clk 0:01:35]} 23. Bxf6 {[%clk 0:01:22]}  Qe6 {[%clk 0:01:34]} 24. Qxd6 {[%clk 0:01:19]}  Nc6 {[%clk 0:01:27]} 25. Bf1 {[%clk 0:01:13]}  Na5 {[%clk 0:01:23]} 26. Rc3 {[%clk 0:01:07]}  Qxd6 {[%clk 0:01:13]} 27. Rxd6 {[%clk 0:01:06]}  Re1 {[%clk 0:01:14]} 28. b4 {[%clk 0:01:00]}  Nc6 {[%clk 0:01:13]} 29. b5 {[%clk 0:01:00]}  Nb4 {[%clk 0:01:13]} 30. f3 {[%clk 0:00:54]}  Ra1 {[%clk 0:00:56]} 31. c5 {[%clk 0:00:47]}  Re8 {[%clk 0:00:52]} 32. c6 {[%clk 0:00:44]}  bxc6 {[%clk 0:00:48]} 33. bxc6 {[%clk 0:00:42]}  Ree1 {[%clk 0:00:41]} 34. Rd8+ {[%clk 0:00:42]} 1-0

[Event "January 9 Late 2024"]
[Site "https://www.chess.com"]
[Date "2024.01.09"]
[Round "9"]
[White "Mokshanov, Alexey"]
[Black "Brodsky, David"]
[Result "0-1"]
[Board "60"]
[TimeControl "180+1"]
[WhiteFideId "24121657"]
[BlackFideId "2073250"]
[WhiteElo "2614"]
[BlackElo "2814"]
[WhiteTeam "RUS"]
[BlackTeam "USA"]
[WhiteClock "0:00:02"]
[BlackClock "0:00:05"]

1. e4 {[%clk 0:03:00]}  c5 {[%clk 0:02:55]} 2. Nf3 {[%clk 0:03:00]}  d6 {[%clk 0:02:56]} 3. Bb5+ {[%clk 0:02:59]}  Bd7 {[%clk 0:02:54]} 4. Bxd7+ {[%clk 0:02:58]}  Qxd7 {[%clk 0:02:52]} 5. O-O {[%clk 0:02:59]}  Nc6 {[%clk 0:02:52]} 6. c3 {[%clk 0:02:59]}  d5 {[%clk 0:02:52]} 7. exd5 {[%clk 0:02:41]}  Qxd5 {[%clk 0:02:53]} 8. d4 {[%clk 0:02:39]}  e6 {[%clk 0:02:51]} 9. dxc5 {[%clk 0:02:37]}  Qxd1 {[%clk 0:02:48]} 10. Rxd1 {[%clk 0:02:38]}  Bxc5 {[%clk 0:02:49]} 11. Nbd2 {[%clk 0:02:37]}  O-O-O {[%clk 0:02:33]} 12. Re1 {[%clk 0:02:26]}  Nf6 {[%clk 0:02:32]} 13. Ne4 {[%clk 0:02:20]}  Nxe4 {[%clk 0:02:30]} 14. Rxe4 {[%clk 0:02:21]}  Rd1+ {[%clk 0:02:26]} 15. Re1 {[%clk 0:02:21]}  Rhd8 {[%clk 0:02:25]} 16. Be3 {[%clk 0:02:05]}  Rxa1 {[%clk 0:02:21]} 17. Rxa1 {[%clk 0:02:06]}  Bxe3 {[%clk 0:02:17]} 18. fxe3 {[%clk 0:02:07]}  Na5 {[%clk 0:02:13]} 19. Kf2 {[%clk 0:01:59]}  Nc4 {[%clk 0:02:13]} 20. b3 {[%clk 0:01:56]}  Nd2 {[%clk 0:02:13]} 21. Ke2 {[%clk 0:01:45]}  Ne4 {[%clk 0:02:09]} 22. Rc1 {[%clk 0:01:45]}  f6 {[%clk 0:02:01]} 23. Rc2 {[%clk 0:01:45]}  e5 {[%clk 0:01:47]} 24. Nd2 {[%clk 0:01:45]}  Nd6 {[%clk 0:01:15]} 25. c4 {[%clk 0:01:40]}  Kd7 {[%clk 0:01:14]} 26. Rc3 {[%clk 0:01:32]}  Ke6 {[%clk 0:01:05]} 27. Rd3 {[%clk 0:01:30]}  Rc8 {[%clk 0:01:05]} 28. a4 {[%clk 0:00:51]}  a5 {[%clk 0:00:51]} 29. Rd5 {[%clk 0:00:49]}  b6 {[%clk 0:00:52]} 30. Kd3 {[%clk 0:00:49]}  f5 {[%clk 0:00:32]} 31. Kc2 {[%clk 0:00:40]}  e4 {[%clk 0:00:31]} 32. Kc3 {[%clk 0:00:20]}  Rc6 {[%clk 0:00:16]} 33. Nf1 {[%clk 0:00:19]}  Nb7 {[%clk 0:00:16]} 34. Ng3 {[%clk 0:00:19]}  g6 {[%clk 0:00:13]} 35. Ne2 {[%clk 0:00:19]}  Rd6 {[%clk 0:00:13]} 36. Nf4+ {[%clk 0:00:15]}  Ke7 {[%clk 0:00:12]} 37. Rb5 {[%clk 0:00:16]}  Nc5 {[%clk 0:00:11]} 38. Nd5+ {[%clk 0:00:16]}  Ke6 {[%clk 0:00:04]} 39. Rxb6 {[%clk 0:00:14]}  Rxb6 {[%clk 0:00:04]} 40. Nxb6 {[%clk 0:00:15]}  Ke5 {[%clk 0:00:05]} 41. b4 {[%clk 0:00:14]}  axb4+ {[%clk 0:00:06]} 42. Kxb4 {[%clk 0:00:15]}  Nd3+ {[%clk 0:00:06]} 43. Kc3 {[%clk 0:00:14]}  f4 {[%clk 0:00:06]} 44. exf4+ {[%clk 0:00:14]}  Kxf4 {[%clk 0:00:06]} 45. a5 {[%clk 0:00:15]}  Nc5 {[%clk 0:00:06]} 46. Kd4 {[%clk 0:00:14]}  Nb3+ {[%clk 0:00:06]} 47. Kc3 {[%clk 0:00:14]}  Nxa5 {[%clk 0:00:07]} 48. c5 {[%clk 0:00:13]}  Nc6 {[%clk 0:00:04]} 49. Kc4 {[%clk 0:00:13]}  Ke3 {[%clk 0:00:04]} 50. Kd5 {[%clk 0:00:13]}  Nb4+ {[%clk 0:00:05]} 51. Kd6 {[%clk 0:00:13]}  Kf2 {[%clk 0:00:04]} 52. Nc4 {[%clk 0:00:12]}  e3 {[%clk 0:00:04]} 53. Nxe3 {[%clk 0:00:08]}  Kxe3 {[%clk 0:00:04]} 54. c6 {[%clk 0:00:09]}  Nxc6 {[%clk 0:00:04]} 55. Kxc6 {[%clk 0:00:10]}  Kf2 {[%clk 0:00:05]} 56. Kd5 {[%clk 0:00:11]}  Kxg2 {[%clk 0:00:05]} 57. h4 {[%clk 0:00:02]}  Kg3 {[%clk 0:00:05]} 0-1